bitfinex/quotes_BTCUSD_20220306
["timestamp","ask_amount","ask_price","bid_price","bid_amount"]
[1646524802380,0.00010823,39410.0,39409.0,0.01103918]
[1646524802579,0.00010823,39410.0,39409.0,0.38864618]
[1646524803179,0.3,39413.0,39410.0,9.177e-05]
[1646524803377,0.35830107,39414.0,39411.0,0.377607]
[1646524803578,0.15444925,39414.0,39410.0,9.177e-05]
[1646524803779,0.15444925,39414.0,39412.0,0.01103918]
[1646524803978,0.12908077,39414.0,39412.0,0.01103918]
[1646524804211,0.12908077,39414.0,39410.0,9.177e-05]
[1646524805312,0.12908077,39414.0,39412.0,0.01103918]
[1646524805713,0.3,39413.0,39410.0,9.177e-05]
[1646524806115,0.3,39413.0,39411.0,0.377607]
[1646524806312,0.3,39413.0,39410.0,9.177e-05]
[1646524806515,0.00018353,39409.0,39408.0,0.002]
[1646524806713,0.00018353,39409.0,39408.0,0.379607]
[1646524806914,0.00018353,39409.0,39408.0,0.002]
[1646524807315,0.00018353,39409.0,39407.0,0.23749108]
[1646524808385,0.00018353,39409.0,39408.0,0.01103918]
[1646524808587,0.00018353,39409.0,39408.0,0.38864618]
[1646524808787,0.00018353,39409.0,39408.0,0.01103918]
[1646524809186,0.18030755,39409.0,39408.0,0.01103918]
[1646524811488,0.18030755,39409.0,39408.0,0.26103918]
[1646524812517,0.48030755,39409.0,39408.0,0.26103918]
[1646524812714,0.18030755,39409.0,39408.0,0.26103918]
[1646524814315,0.23830855,39409.0,39408.0,0.26103918]
[1646524814514,0.23765979,39409.0,39408.0,0.26103918]
[1646524814718,0.44806301,39409.0,39408.0,0.26103918]
[1646524814916,0.23765979,39409.0,39408.0,0.26103918]
[1646524815117,0.53765979,39409.0,39408.0,0.26103918]
[1646524815377,0.58845979,39409.0,39408.0,0.26103918]
[1646524815770,0.53398273,39408.0,39407.0,0.23749108]
[1646524815967,0.96068373,39408.0,39407.0,0.01714075]
[1646524816169,0.02538,39407.0,39388.0,0.01268]
[1646524816369,0.09474964,39400.0,39386.0,0.01268]
[1646524816573,0.09474964,39400.0,39384.0,0.16988355]
[1646524816574,0.383381,39399.0,39384.0,0.16988355]
[1646524816769,0.02538,39397.0,39381.0,0.18256355]
[1646524816970,0.02538,39395.0,39380.0,0.19300461]
[1646524817168,0.1685932,39388.0,39380.0,0.41203197]
[1646524817469,0.3,39387.0,39380.0,0.41203197]
[1646524817668,0.3,39387.0,39380.0,0.21902736]
[1646524818667,0.3,39387.0,39378.0,0.01268]
[1646524818868,0.3,39387.0,39382.0,0.00026002]
[1646524819715,0.3,39387.0,39378.0,0.17976683]
[1646524819916,0.058001,39386.0,39378.0,0.17976683]
[1646524820216,0.058001,39384.0,39383.0,0.00026002]
[1646524820415,0.358001,39384.0,39383.0,0.00026002]
[1646524820616,0.058001,39384.0,39383.0,0.00026002]
[1646524821117,0.058001,39384.0,39382.0,0.00025566]
[1646524821917,0.058001,39384.0,39383.0,0.25]
[1646524825275,0.14759778,39384.0,39383.0,0.25]
[1646524826717,0.23765979,39384.0,39383.0,0.25]
[1646524834913,0.17965879,39384.0,39383.0,0.25]
[1646524835113,0.17965879,39384.0,39383.0,0.978407]
[1646524835314,0.005,39390.0,39384.0,0.35]
[1646524835512,0.94735224,39399.0,39385.0,0.728407]
[1646524835513,0.94731831,39399.0,39385.0,0.728407]
[1646524835712,0.6918,39399.0,39392.0,0.07333716]
[1646524835911,0.058001,39401.0,39393.0,0.35916979]
[1646524836111,0.003,39402.0,39393.0,0.65916979]
[1646524836310,0.003,39402.0,39394.0,0.0508]
[1646524836513,0.003,39402.0,39394.0,0.05061894]
[1646524836910,0.058001,39400.0,39396.0,0.00022953]
[1646524837109,0.003,39402.0,39394.0,0.05015989]
[1646524837312,0.003,39402.0,39399.0,0.15987103]
[1646524837517,0.3,39406.0,39399.0,0.15987103]
[1646524837711,0.3,39408.0,39399.0,0.15987103]
[1646524837978,0.24314254,39409.0,39399.0,0.15987103]
[1646524838174,0.01268,39411.0,39400.0,0.37401036]
[1646524838384,1.18958,39419.0,39407.0,0.21085481]
[1646524838581,0.1944596,39418.0,39409.0,0.377607]
[1646524838777,0.4923,39424.0,39410.0,0.4]
[1646524838976,0.4923,39424.0,39410.0,0.4508]
[1646524838977,0.058001,39423.0,39410.0,0.4508]
[1646524839177,0.00011394,39419.0,39411.0,0.17899506]
[1646524839374,0.00011394,39419.0,39414.0,0.16093992]
[1646524839577,0.058001,39418.0,39417.0,0.025]
[1646524839774,0.00011394,39419.0,39417.0,0.025]
[1646524840174,0.0021,39424.0,39417.0,0.025]
[1646524840374,0.00011394,39420.0,39417.0,0.025]
[1646524840976,0.00011394,39420.0,39418.0,0.07362865]
[1646524841175,0.00011394,39420.0,39418.0,0.09863865]
[1646524841375,0.0021,39424.0,39418.0,0.09863865]
[1646524841636,0.00024476,39421.0,39418.0,0.02501]
[1646524842040,0.058001,39420.0,39418.0,0.02501]
[1646524842737,0.058001,39420.0,39418.0,0.27501]
[1646524845477,0.41873823,39417.0,39409.0,0.0508]
[1646524845671,0.15398097,39415.0,39406.0,0.07060342]
[1646524845869,0.15398097,39415.0,39405.0,0.0508]
[1646524845870,0.058001,39414.0,39405.0,0.0508]
[1646524846071,0.15398097,39415.0,39405.0,0.0508]
[1646524846568,0.00023658,39411.0,39409.0,0.20722797]
[1646524847570,0.4450644,39417.0,39409.0,0.20722797]
[1646524847571,0.058001,39416.0,39409.0,0.20722797]
[1646524847774,0.00023658,39412.0,39409.0,0.20722797]
[1646524848571,0.00023658,39412.0,39406.0,0.1]
[1646524848572,0.058001,39411.0,39406.0,0.1]
[1646524848771,0.18488254,39414.0,39401.0,0.1008]
[1646524848972,0.00023658,39412.0,39401.0,0.1008]
[1646524849219,0.00023658,39412.0,39401.0,0.3508]
[1646524849419,0.00023658,39412.0,39409.0,0.16206638]
[1646524849624,0.058001,39411.0,39409.0,0.16206638]
[1646524850020,0.41873823,39417.0,39409.0,0.16206638]
[1646524850224,0.00022977,39412.0,39409.0,0.16206638]
[1646524850424,0.00022977,39412.0,39410.0,0.377607]
[1646524850919,0.00022977,39412.0,39410.0,0.372607]
[1646524851119,0.41873823,39417.0,39409.0,0.23202792]
[1646524851320,0.00022976,39413.0,39409.0,0.23202792]
[1646524851519,0.00022976,39413.0,39409.0,0.16206638]
[1646524852122,0.00022976,39413.0,39410.0,0.377477]
[1646524852323,0.00022976,39413.0,39409.0,0.16206638]
[1646524852324,0.063021,39412.0,39409.0,0.16206638]
[1646524852522,0.00022976,39413.0,39409.0,0.16206638]
[1646524852724,0.00022976,39413.0,39409.0,0.25]
[1646524852976,0.063021,39412.0,39409.0,0.25]
[1646524853173,0.3,39411.0,39409.0,0.25]
[1646524853375,0.063021,39410.0,39409.0,0.25]
[1646524853573,0.363021,39410.0,39409.0,0.25]
[1646524853775,0.55346472,39410.0,39409.0,0.25]
[1646524854272,0.363021,39410.0,39409.0,0.25]
[1646524856721,0.54574932,39410.0,39409.0,0.25]
[1646524858321,0.363021,39410.0,39409.0,0.25]
[1646524866025,0.31157506,39410.0,39409.0,0.25]
[1646524866226,0.01157506,39410.0,39409.0,0.25]
[1646524867029,0.01157506,39410.0,39396.0,0.06315027]
[1646524867030,0.10714295,39401.0,39396.0,0.06315027]
[1646524867328,0.10714295,39401.0,39397.0,0.377614]
[1646524867974,0.10714295,39401.0,39394.0,0.1]
[1646524868175,0.10714295,39401.0,39400.0,0.39270017]
[1646524869072,0.10714295,39401.0,39400.0,0.20148666]
[1646524870075,0.10714295,39401.0,39400.0,0.4149647]
[1646524870675,0.10214295,39401.0,39400.0,0.20148666]
[1646524870878,0.011554,39400.0,39394.0,0.00023041]
[1646524871078,0.011554,39399.0,39394.0,0.00023041]
[1646524871278,0.011554,39400.0,39394.0,0.00023041]
[1646524871476,0.011554,39399.0,39390.0,0.05895]
[1646524871722,0.10214295,39401.0,39394.0,0.00023039]
[1646524871924,0.21412492,39399.0,39394.0,0.00023039]
[1646524872720,0.21412492,39399.0,39394.0,0.20128134]
[1646524872924,0.21412492,39399.0,39394.0,0.20151173]
[1646524873121,0.10214295,39401.0,39394.0,0.20151173]
[1646524873727,0.10214295,39401.0,39399.0,0.07091247]
[1646524873926,0.10214295,39401.0,39400.0,0.377614]
[1646524874126,0.10214295,39401.0,39400.0,0.74923096]
[1646524874730,0.00023032,39407.0,39402.0,0.377614]
[1646524874926,0.00023032,39407.0,39402.0,0.427614]
[1646524875126,0.3,39416.0,39406.0,0.16679672]
[1646524875390,0.00023034,39407.0,39406.0,0.16679672]
[1646524875790,0.00023034,39407.0,39403.0,0.1]
[1646524876187,0.00023034,39407.0,39400.0,0.39907152]
[1646524876389,0.21394833,39410.0,39402.0,0.002]
[1646524876592,0.00023034,39407.0,39403.0,0.377614]
[1646524876788,0.00023034,39407.0,39406.0,0.17782876]
[1646524877687,0.011554,39415.0,39406.0,0.17782876]
[1646524877889,0.00023034,39408.0,39400.0,0.0508]
[1646524878093,0.00023034,39408.0,39398.0,0.19421132]
[1646524878390,0.00023034,39408.0,39401.0,0.001]
[1646524878788,0.3,39412.0,39403.0,0.17944768]
[1646524878989,0.00023034,39407.0,39404.0,0.20073284]
[1646524879625,0.00023034,39407.0,39405.0,0.377614]
[1646524879825,0.00023034,39407.0,39406.0,0.377614]
[1646524880023,0.00023034,39407.0,39404.0,0.20073284]
[1646524880024,0.3,39412.0,39404.0,0.20073284]
[1646524880225,0.00023034,39408.0,39404.0,0.20273284]
[1646524880423,0.011554,39407.0,39404.0,0.002]
[1646524881430,0.011554,39405.0,39397.0,0.21936509]
[1646524881626,0.311554,39405.0,39397.0,0.21936509]
[1646524882530,0.46392934,39405.0,39397.0,0.21936509]
[1646524882729,0.311554,39405.0,39397.0,0.21936509]
[1646524883972,0.311554,39405.0,39397.0,0.23936509]
[1646524894717,0.011554,39405.0,39397.0,0.23936509]
[1646524894918,0.01146956,39405.0,39397.0,0.23936509]
[1646524895518,0.31146956,39405.0,39397.0,0.23936509]
[1646524900774,0.31146956,39405.0,39397.0,0.2392495]
[1646524902621,0.20647213,39401.0,39397.0,0.2392495]
[1646524902821,0.31147,39400.0,39397.0,0.02]
[1646524903025,0.03999999,39395.0,39394.0,0.00023041]
[1646524903224,0.05146999,39395.0,39394.0,0.00023041]
[1646524903831,0.54044034,39395.0,39394.0,0.00023041]
[1646524904023,0.54044034,39395.0,39388.0,0.15547133]
[1646524904224,0.54044034,39395.0,39393.0,0.0002304]
[1646524904424,0.3,39394.0,39393.0,0.0002304]
[1646524904622,0.31147,39394.0,39393.0,0.0002304]
[1646524905224,0.01147,39393.0,39388.0,0.15547133]
[1646524905475,0.01147,39393.0,39392.0,0.0002304]
[1646524906379,0.3,39394.0,39376.0,0.20319146]
[1646524906576,0.01147,39393.0,39391.0,0.0002304]
[1646524907575,0.01147,39393.0,39383.0,0.19766095]
[1646524907775,0.19715133,39389.0,39383.0,0.19766095]
[1646524907975,0.31147,39388.0,39383.0,0.19766095]
[1646524908175,0.01147,39388.0,39383.0,0.19766095]
[1646524908376,0.01147,39388.0,39383.0,0.35247212]
[1646524908677,0.01147,39393.0,39383.0,0.35247212]
[1646524908880,0.01147,39393.0,39384.0,0.00023042]
[1646524909520,0.20126881,39393.0,39384.0,0.00023042]
[1646524909720,0.01147,39390.0,39384.0,0.00023042]
[1646524909923,0.31147,39390.0,39383.0,0.19766095]
[1646524910122,0.31147,39390.0,39387.0,0.00023042]
[1646524910321,0.01147,39390.0,39387.0,0.00023042]
[1646524910623,0.31147,39390.0,39387.0,0.00023042]
[1646524910820,0.01147,39390.0,39387.0,0.00023042]
[1646524911019,0.31147,39390.0,39387.0,0.00023042]
[1646524911225,0.31147,39390.0,39383.0,0.19766095]
[1646524911424,0.31147,39390.0,39387.0,0.00023042]
[1646524911622,0.01147,39390.0,39387.0,0.00023042]
[1646524911921,0.31147,39390.0,39387.0,0.00023042]
[1646524912323,0.31147,39390.0,39369.0,0.102504]
[1646524912324,1.15048,39389.0,39369.0,0.102504]
[1646524912529,0.15,39381.0,39375.0,0.00092193]
[1646524912728,0.01147,39378.0,39375.0,0.00987193]
[1646524912977,0.0508,39377.0,39375.0,0.00987193]
[1646524913174,0.31147,39376.0,39375.0,0.00987193]
[1646524913377,0.06227,39376.0,39375.0,0.00987193]
[1646524913578,0.06227,39376.0,39375.0,0.00895]
[1646524913776,0.06227,39376.0,39369.0,0.039]
[1646524914375,0.06227,39376.0,39375.0,0.02]
[1646524914576,0.01147,39376.0,39375.0,0.03268]
[1646524914874,0.31147,39376.0,39375.0,0.02]
[1646524915676,0.31147,39376.0,39373.0,0.00023063]
[1646524915879,0.31147,39376.0,39369.0,0.039]
[1646524916075,0.31147,39376.0,39373.0,0.00023063]
[1646524917241,0.31147,39376.0,39369.0,0.039]
[1646524917444,0.31147,39376.0,39373.0,0.00023063]
[1646524918343,0.01147,39376.0,39369.0,0.039]
[1646524918543,0.01147,39376.0,39373.0,0.00023044]
[1646524918742,0.07214866,39376.0,39373.0,0.00023044]
[1646524918943,0.01147,39374.0,39373.0,0.00023044]
[1646524919544,0.01147,39374.0,39369.0,0.039]
[1646524919744,0.01147,39374.0,39372.0,0.00023045]
[1646524920777,0.01147,39374.0,39369.0,0.039]
[1646524920977,0.01147,39374.0,39371.0,0.00023045]
[1646524921977,0.01147,39374.0,39369.0,0.039]
[1646524922178,0.01147,39374.0,39371.0,0.00023047]
[1646524922380,0.01147,39374.0,39372.0,0.15540322]
[1646524922584,0.004,39377.0,39373.0,0.3]
[1646524922783,0.004,39377.0,39374.0,0.377609]
[1646524922979,0.004,39377.0,39375.0,0.3]
[1646524923278,0.004,39377.0,39374.0,0.0508]
[1646524923480,0.01147,39376.0,39374.0,0.0508]
[1646524923679,0.01147,39375.0,39373.0,0.00023046]
[1646524923880,0.01147,39376.0,39373.0,0.00023046]
[1646524924148,0.01147,39375.0,39373.0,0.00023046]
[1646524924451,0.01147,39375.0,39369.0,0.039]
[1646524924646,0.01147,39375.0,39373.0,0.00023046]
[1646524925446,0.01147,39375.0,39374.0,0.17775286]
[1646524926049,0.01147,39381.0,39372.0,0.00023046]
[1646524926252,0.01147,39381.0,39375.0,0.05909095]
[1646524926450,0.01147,39381.0,39373.0,0.002]
[1646524926451,0.01347,39381.0,39373.0,0.002]
[1646524926652,0.002,39381.0,39373.0,0.002]
[1646524926954,0.01147,39380.0,39377.0,0.21942805]
[1646524927152,0.01147,39380.0,39379.0,0.20532794]
[1646524927551,0.01147,39380.0,39377.0,0.21942805]
[1646524927990,0.01147,39381.0,39377.0,0.21942805]
[1646524928993,0.00123041,39382.0,39378.0,0.3]
[1646524929196,0.001,39382.0,39378.0,0.3508]
[1646524929395,0.001,39382.0,39379.0,0.53846811]
[1646524929597,0.001,39382.0,39380.0,0.35481166]
[1646524929598,0.00123042,39382.0,39380.0,0.35481166]
[1646524929794,0.00123042,39382.0,39381.0,0.690289]
[1646524929992,0.00023042,39382.0,39381.0,0.77587164]
[1646524930194,0.00023042,39382.0,39381.0,0.87587164]
[1646524930394,0.13822057,39394.0,39381.0,0.49826264]
[1646524930599,0.17528365,39394.0,39384.0,0.19941528]
[1646524930796,0.01147,39393.0,39384.0,0.19941528]
[1646524931831,0.0002304,39390.0,39384.0,0.19941528]
[1646524932229,0.01147,39389.0,39384.0,0.19941528]
[1646524932425,0.0002304,39390.0,39384.0,0.19941528]
[1646524932626,0.0002304,39390.0,39386.0,0.20277758]
[1646524932828,0.47828365,39394.0,39386.0,0.20267188]
[1646524933026,0.47828365,39394.0,39386.0,0.07169881]
[1646524933027,0.00023056,39389.0,39386.0,0.07169881]
[1646524933228,0.48358595,39385.0,39384.0,0.19941528]
[1646524933827,0.48358595,39385.0,39384.0,0.57702428]
[1646524934427,0.48358595,39385.0,39384.0,0.64529537]
[1646524934628,0.48358595,39385.0,39384.0,0.85041041]
[1646524937071,0.48358595,39385.0,39384.0,0.87579041]
[1646524937274,0.48358595,39385.0,39384.0,1.35172068]
[1646524937476,0.00023039,39386.0,39385.0,0.35]
[1646524937673,0.03999999,39395.0,39385.0,0.791089]
[1646524937872,0.03999999,39395.0,39387.0,0.17538]
[1646524938071,0.03999999,39395.0,39392.0,0.16922093]
[1646524938272,0.03999999,39395.0,39393.0,0.06448499]
[1646524938875,0.03999999,39395.0,39393.0,0.23521816]
[1646524939142,0.03999999,39395.0,39393.0,0.06448499]
[1646524939342,0.03999999,39395.0,39392.0,0.16922093]
[1646524940145,0.04023054,39395.0,39393.0,0.20803392]
[1646524941243,0.03999999,39395.0,39393.0,0.26276821]
[1646524945676,0.03999999,39395.0,39393.0,0.20803392]
[1646524945880,0.01147,39394.0,39388.0,0.01268]
[1646524946080,0.33999999,39395.0,39381.0,0.01268]
[1646524946478,0.33999999,39395.0,39382.0,0.35460932]
[1646524946737,0.33999999,39395.0,39390.0,0.21979561]
[1646524946936,0.03999999,39395.0,39390.0,0.28667789]
[1646524947539,0.00023038,39394.0,39390.0,0.28667789]
[1646524947738,0.00023038,39394.0,39391.0,0.377609]
[1646524947943,0.00023038,39394.0,39390.0,0.28667789]
[1646524948340,0.03999999,39395.0,39390.0,0.28667789]
[1646524948540,0.00023038,39394.0,39390.0,0.28667789]
[1646524948941,0.00023038,39394.0,39391.0,0.377669]
[1646524949642,0.03999999,39395.0,39390.0,0.28667789]
[1646524949843,0.00023038,39394.0,39390.0,0.28667789]
[1646524950144,0.00023038,39394.0,39391.0,0.377669]
[1646524950577,0.00023038,39394.0,39392.0,0.377669]
[1646524950780,0.03999999,39395.0,39390.0,0.28667789]
[1646524950976,0.00023038,39394.0,39391.0,0.377669]
[1646524951173,0.00023038,39394.0,39392.0,0.18151762]
[1646524951377,0.00023038,39394.0,39393.0,0.67516146]
[1646524951576,0.00092138,39400.0,39394.0,0.35]
[1646524951775,0.00092138,39400.0,39395.0,0.72625971]
[1646524951975,0.4682,39408.0,39396.0,0.0508]
[1646524952177,0.3296278,39406.0,39397.0,0.20976589]
[1646524952377,0.316537,39405.0,39397.0,0.20976589]
[1646524952577,0.316537,39405.0,39392.0,0.23151762]
[1646524952776,0.3,39405.0,39392.0,0.23151762]
[1646524953477,0.3,39405.0,39399.0,0.15502983]
[1646524954741,0.1998,39407.0,39399.0,0.15502983]
[1646524954742,0.00026003,39404.0,39399.0,0.15502983]
[1646524955643,0.3,39406.0,39399.0,0.15502983]
[1646524955846,0.19244778,39411.0,39399.0,0.15502983]
[1646524955847,0.00026004,39403.0,39399.0,0.15502983]
[1646524956241,0.016537,39402.0,39399.0,0.15502983]
[1646524956842,0.3,39404.0,39399.0,0.15502983]
[1646524956843,0.3,39406.0,39399.0,0.15502983]
[1646524957042,0.00026004,39402.0,39399.0,0.15502983]
[1646524958078,0.016537,39406.0,39399.0,0.15502983]
[1646524958278,0.00026004,39402.0,39399.0,0.15502983]
[1646524958878,0.00026004,39402.0,39400.0,0.2063167]
[1646524959178,0.3,39407.0,39400.0,0.2063167]
[1646524959379,0.00025331,39403.0,39400.0,0.2063167]
[1646524960379,0.49877717,39411.0,39400.0,0.2063167]
[1646524960582,0.49877717,39411.0,39399.0,0.15502983]
[1646524960583,0.00025331,39403.0,39399.0,0.15502983]
[1646524960988,0.016537,39402.0,39399.0,0.15502983]
[1646524961185,0.016537,39402.0,39387.0,0.21960631]
[1646524961186,0.00025331,39403.0,39387.0,0.01268]
[1646524961384,0.016537,39402.0,39387.0,0.01268]
[1646524961628,0.00025331,39403.0,39393.0,0.19516312]
[1646524961629,0.016537,39403.0,39393.0,0.19516312]
[1646524961829,0.00025332,39399.0,39393.0,0.19516312]
[1646524962028,0.00025332,39399.0,39395.0,0.17830331]
[1646524962829,0.3,39404.0,39395.0,0.17830331]
[1646524963030,0.00024796,39399.0,39395.0,0.17830331]
[1646524964032,1.1736,39406.0,39395.0,0.17830331]
[1646524964230,0.00024796,39399.0,39395.0,0.17830331]
[1646524964936,0.00024796,39399.0,39395.0,0.23313557]
[1646524965138,0.1215,39407.0,39396.0,0.728469]
[1646524965382,0.196,39414.0,39396.0,0.3508]
[1646524965574,0.00024796,39399.0,39396.0,0.3508]
[1646524965776,0.00024796,39399.0,39398.0,0.00025385]
[1646524965975,0.00024796,39399.0,39398.0,0.05105385]
[1646524966178,0.00024796,39399.0,39398.0,0.15105385]
[1646524966374,0.00099169,39405.0,39398.0,0.14877034]
[1646524966574,0.016537,39412.0,39406.0,0.16446178]
[1646524966775,0.32892356,39402.0,39400.0,0.18111285]
[1646524967075,0.32892356,39402.0,39401.0,0.00025385]
[1646524967275,0.32892356,39402.0,39397.0,0.05]
[1646524967483,0.32892356,39402.0,39393.0,0.005]
[1646524967677,0.32892356,39402.0,39392.0,0.04]
[1646524967874,0.32892356,39402.0,39391.0,0.3]
[1646524968075,0.32892356,39402.0,39391.0,0.1]
[1646524968076,0.00024451,39401.0,39391.0,0.1]
[1646524968275,0.16942174,39400.0,39392.0,0.19047209]
[1646524969125,0.00024474,39398.0,39392.0,0.19047209]
[1646524970023,0.16942174,39400.0,39392.0,0.19047209]
[1646524970424,0.00024475,39397.0,39392.0,0.19047209]
[1646524970624,0.16466649,39400.0,39395.0,0.18984682]
[1646524971023,0.16466649,39400.0,39392.0,0.19047209]
[1646524972022,0.16466649,39400.0,39393.0,0.1866154]
[1646524972623,0.16466649,39400.0,39392.0,0.19047209]
[1646524973678,0.16466649,39400.0,39394.0,0.18076518]
[1646524973881,0.16466649,39400.0,39392.0,0.19047209]
[1646524973882,0.00026005,39399.0,39392.0,0.19047209]
[1646524974777,0.00026005,39399.0,39393.0,0.377669]
[1646524974977,0.32892356,39402.0,39394.0,0.377669]
[1646524975177,0.00024368,39399.0,39392.0,0.19047209]
[1646524975378,0.00024368,39399.0,39393.0,0.377669]
[1646524975779,0.00024368,39399.0,39392.0,0.39858431]
[1646524976081,0.162649,39398.0,39392.0,0.20811222]
[1646524976279,0.162649,39398.0,39393.0,0.377669]
[1646524976484,0.162649,39398.0,39390.0,0.377669]
[1646524976726,0.162649,39398.0,39389.0,0.16268]
[1646524976925,0.19901255,39392.0,39389.0,0.05]
[1646524977128,0.3,39391.0,39388.0,0.01268]
[1646524977327,0.46370627,39400.0,39388.0,0.16860151]
[1646524977527,0.016537,39399.0,39388.0,0.16860151]
[1646524977727,0.01678066,39399.0,39388.0,0.16860151]
[1646524978325,0.063501,39397.0,39388.0,0.16860151]
[1646524978526,0.17508019,39395.0,39388.0,0.16860151]
[1646524978726,0.3,39394.0,39388.0,0.16860151]
[1646524979130,0.17508019,39395.0,39388.0,0.16860151]
[1646524979329,0.00024367,39399.0,39389.0,0.3]
[1646524979531,0.00024367,39399.0,39390.0,0.0508]
[1646524979828,0.3,39401.0,39391.0,0.37767]
[1646524980027,0.0002445,39399.0,39392.0,0.0508]
[1646524980230,0.0002445,39399.0,39395.0,0.18888672]
[1646524980480,0.0002445,39399.0,39393.0,0.19550949]
[1646524980679,0.0002445,39399.0,39394.0,0.42847]
[1646524980882,2.52157706,39423.0,39394.0,0.0508]
[1646524981083,0.00024451,39399.0,39395.0,0.37767]
[1646524981298,0.00024451,39399.0,39395.0,0.67693595]
[1646524981482,0.00024451,39399.0,39397.0,0.37767]
[1646524982080,0.21617343,39405.0,39397.0,0.37767]
[1646524982280,0.21617343,39405.0,39399.0,0.16537507]
[1646524982479,0.21617343,39405.0,39400.0,0.37767]
[1646524983479,0.1177,39408.0,39400.0,0.37767]
[1646524984328,0.29803697,39408.0,39400.0,0.37513264]
[1646524985726,0.29803697,39408.0,39400.0,0.3725936]
[1646524985928,0.0002449,39403.0,39400.0,0.3725936]
[1646524986831,0.29803697,39408.0,39400.0,0.3725936]
[1646524987028,0.00025243,39403.0,39400.0,0.3725936]
[1646524988074,0.29803697,39408.0,39400.0,0.3725936]
[1646524988273,0.00025243,39403.0,39400.0,0.3725936]
[1646524989275,0.29803697,39408.0,39400.0,0.3725936]
[1646524989481,0.00025243,39403.0,39399.0,0.16537507]
[1646524989675,0.00025243,39403.0,39400.0,0.377591]
[1646524990076,0.00025243,39403.0,39399.0,0.16537507]
[1646524990479,0.29803697,39408.0,39400.0,0.377591]
[1646524990876,0.32916743,39402.0,39400.0,0.377591]
[1646524991483,0.32916743,39402.0,39398.0,0.1]
[1646524991759,0.32892356,39402.0,39396.0,0.01268]
[1646524991957,0.32892356,39402.0,39395.0,0.003]
[1646524992159,0.32892356,39402.0,39390.0,0.3]
[1646524992560,0.17070701,39400.0,39393.0,0.15593005]
[1646524992760,0.17070701,39400.0,39390.0,0.003]
[1646524993156,0.00024388,39399.0,39390.0,0.003]
[1646524993958,0.00024388,39399.0,39392.0,0.38783664]
[1646524994157,0.17070701,39400.0,39392.0,0.38783664]
[1646524994362,0.00024445,39399.0,39392.0,0.38783664]
[1646524994558,0.00024445,39399.0,39393.0,0.377591]
[1646524994761,0.00024445,39399.0,39392.0,0.38783664]
[1646524994958,0.00024445,39399.0,39393.0,0.377591]
[1646524995379,0.32892356,39402.0,39393.0,0.677591]
[1646524995583,0.00024446,39399.0,39393.0,0.677591]
[1646524995978,0.00024446,39399.0,39398.0,0.159614]
[1646524996579,0.32892356,39402.0,39398.0,0.159614]
[1646524996780,0.00024446,39400.0,39398.0,0.159614]
[1646524997679,0.32892356,39402.0,39398.0,0.159614]
[1646524997879,0.00024423,39401.0,39398.0,0.159614]
[1646524998882,0.32892356,39402.0,39399.0,0.377591]
[1646524999130,0.00024423,39401.0,39399.0,0.377591]
[1646525000132,0.32892356,39402.0,39399.0,0.377591]
[1646525000330,0.32916779,39402.0,39399.0,0.377591]
[1646525001431,0.32916799,39402.0,39399.0,0.377591]
[1646525002333,0.32916799,39402.0,39399.0,0.56150895]
[1646525002534,0.32892356,39402.0,39399.0,0.56150895]
[1646525002737,0.32916799,39402.0,39399.0,0.37505286]
[1646525002999,0.32916799,39402.0,39398.0,0.159614]
[1646525003201,0.32916799,39402.0,39395.0,0.002]
[1646525003602,0.32916799,39402.0,39390.0,0.11286096]
[1646525003603,0.32892356,39402.0,39390.0,0.11286096]
[1646525003997,0.00024443,39400.0,39390.0,0.11286096]
[1646525004199,0.00024443,39400.0,39393.0,0.18007266]
[1646525004899,0.32892356,39402.0,39393.0,0.18007266]
[1646525005199,0.00024442,39399.0,39393.0,0.3841344]
[1646525006100,0.32892356,39402.0,39393.0,0.3841344]
[1646525006400,0.00024442,39399.0,39393.0,0.3841344]
[1646525006643,0.00024442,39399.0,39394.0,0.377596]
[1646525006844,0.00024442,39399.0,39395.0,0.377596]
[1646525007044,0.00024442,39399.0,39396.0,0.377596]
[1646525007244,0.32750556,39402.0,39394.0,0.377596]
[1646525007450,0.00024442,39399.0,39393.0,0.3841344]
[1646525007645,0.00024442,39399.0,39394.0,0.377596]
[1646525007844,0.00024442,39399.0,39393.0,0.3841344]
[1646525008344,0.00024442,39399.0,39394.0,0.377596]
[1646525008546,0.32750556,39402.0,39393.0,0.3841344]
[1646525008746,0.00024442,39399.0,39394.0,0.377596]
[1646525009146,0.00024442,39399.0,39395.0,0.377596]
[1646525009349,0.00024442,39399.0,39393.0,0.3841344]
[1646525009749,0.001,39400.0,39393.0,0.3841344]
[1646525009950,0.00024442,39399.0,39394.0,0.377596]
[1646525010148,0.00024442,39399.0,39395.0,0.377596]
[1646525010378,0.00024442,39399.0,39393.0,0.3841344]
[1646525010582,0.00024442,39399.0,39394.0,0.377596]
[1646525010781,0.00024442,39399.0,39394.0,0.379596]
[1646525010981,0.32750556,39402.0,39394.0,0.002]
[1646525011179,0.00024442,39399.0,39394.0,0.002]
[1646525011381,0.00024442,39399.0,39396.0,0.377596]
[1646525011581,0.00024442,39399.0,39395.0,0.377596]
[1646525012081,0.32750556,39402.0,39393.0,0.6841344]
[1646525012281,0.00024442,39399.0,39394.0,0.377596]
[1646525012484,0.00024442,39399.0,39395.0,0.377596]
[1646525012681,0.00024442,39399.0,39393.0,0.3841344]
[1646525012882,0.00024442,39399.0,39394.0,0.377596]
[1646525013185,0.32750556,39402.0,39394.0,0.377596]
[1646525013381,0.32750556,39402.0,39393.0,0.6841344]
[1646525013581,0.00024442,39399.0,39393.0,0.6841344]
[1646525013782,0.00024442,39399.0,39393.0,0.3841344]
[1646525013984,0.21072556,39398.0,39391.0,0.3]
[1646525014255,0.21072556,39398.0,39392.0,0.1]
[1646525014449,0.21072556,39398.0,39390.0,0.05]
[1646525014849,0.21072556,39398.0,39389.0,0.01268]
[1646525015048,0.21072556,39398.0,39390.0,0.192339]
[1646525020377,0.21072556,39398.0,39390.0,0.18980086]
[1646525022128,0.21072556,39398.0,39390.0,0.18726182]
[1646525022528,0.21072556,39398.0,39389.0,0.1]
[1646525022728,0.3,39397.0,39388.0,0.1]
[1646525022927,0.3,39397.0,39389.0,0.377596]
[1646525023130,0.3,39397.0,39389.0,0.05]
[1646525023327,0.28321257,39397.0,39389.0,0.05]
[1646525023531,0.28321257,39397.0,39391.0,0.19535268]